bitfinex/quotes_SOLUSD_20251204
["timestamp","ask_amount","ask_price","bid_price","bid_amount"]
[1764846083271,11.07098309,143.31,143.27,0.62]
[1764846083850,4.09301869,143.3,143.27,7.59964053]
[1764846084053,4.09301869,143.3,143.27,6.97964053]
[1764846084969,11.07098309,143.31,143.28,0.62]
[1764846085345,11.07053077,143.32,143.28,0.62]
[1764846085752,4.09301869,143.31,143.28,0.62]
[1764846087074,4.09301869,143.29,143.25,25.11880892]
[1764846087254,4.09301869,143.27,143.25,6.98064659]
[1764846087662,4.09301869,143.28,143.25,6.98066613]
[1764846088345,0.72,143.31,143.25,24.43267311]
[1764846088550,4.09301869,143.29,143.25,29.1456918]
[1764846089480,4.09301869,143.29,143.25,25.05267311]
[1764846089864,6.97844904,143.3,143.26,9.42994492]
[1764846089865,4.09301869,143.3,143.26,9.42994492]
[1764846090073,0.72,143.33,143.26,9.42994492]
[1764846090074,4.09301869,143.31,143.27,4.09301869]
[1764846090265,4.09301869,143.31,143.27,4.71301869]
[1764846090580,4.09301869,143.31,143.28,0.62]
[1764846090876,11.07069604,143.32,143.28,0.62]
[1764846091463,11.07069604,143.32,143.28,7.59886502]
[1764846091675,11.07006503,143.33,143.28,11.69188371]
[1764846091871,11.0696452,143.34,143.29,4.71301869]
[1764846092076,6.97662651,143.34,143.3,4.09301869]
[1764846092263,6.97662651,143.34,143.3,4.71301869]
[1764846092574,11.78918258,143.35,143.3,4.71301869]
[1764846093078,4.09301869,143.34,143.3,0.62]
[1764846093282,4.81301869,143.34,143.3,0.62]
[1764846093458,4.09301869,143.34,143.31,6.97788012]
[1764846093859,4.81301869,143.34,143.31,6.97788012]
[1764846094076,11.06918258,143.35,143.31,7.59788012]
[1764846094378,11.78918258,143.35,143.31,7.59788012]
[1764846094584,0.72,143.34,143.31,6.97788012]
[1764846094960,4.81301869,143.34,143.31,6.97788012]
[1764846095363,4.81301869,143.34,143.3,0.62]
[1764846095364,11.78961219,143.34,143.3,7.59814876]
[1764846095685,4.09301869,143.33,143.3,7.59814876]
[1764846096864,11.78961219,143.34,143.3,7.59814876]
[1764846097080,4.81301869,143.34,143.3,7.59814876]
[1764846098464,11.0691735,143.35,143.31,0.62]
[1764846098670,11.7891735,143.35,143.31,0.62]
[1764846098859,4.09301869,143.34,143.31,0.62]
[1764846099068,4.09301869,143.33,143.29,6.97869177]
[1764846099268,4.09301869,143.31,143.28,23.2877936]
[1764846099467,4.09301869,143.31,143.28,16.928864]
[1764846099667,0.72,143.32,143.29,6.97872978]
[1764846099869,4.09301869,143.34,143.29,11.69174847]
[1764846100087,4.81301869,143.34,143.3,0.62]
[1764846100977,6.97613038,143.35,143.3,0.62]
[1764846101177,11.77301869,143.36,143.31,11.07089881]
[1764846101374,4.09301869,143.36,143.32,4.09301869]
[1764846101571,4.81301869,143.36,143.32,4.71301869]
[1764846101775,0.72,143.36,143.32,0.62]
[1764846102093,4.81301869,143.36,143.32,0.62]
[1764846104272,4.09301869,143.34,143.32,6.97729404]
[1764846104471,2.61813211,143.33,143.29,0.62]
[1764846105000,3.31813211,143.33,143.29,0.62]
[1764846105183,3.31813211,143.33,143.3,6.97809864]
[1764846108104,3.31813211,143.33,143.3,7.59809864]
[1764846108294,9.59461447,143.34,143.3,7.59809864]
[1764846108615,0.65,143.33,143.3,7.59809864]
[1764846110017,9.59461447,143.34,143.3,10.21623075]
[1764846110208,0.65,143.34,143.31,0.62]
[1764846110907,17.43861607,143.36,143.32,2.61813211]
[1764846110908,0.65,143.36,143.32,2.61813211]
[1764846111404,0.65,143.36,143.32,3.23813211]
[1764846111900,0.65,143.36,143.33,6.97690643]
[1764846112906,10.24282501,143.38,143.33,9.59503854]
[1764846113087,10.24282501,143.38,143.34,0.62]
[1764846113289,0.65,143.37,143.33,10.21503854]
[1764846114520,3.26813211,143.37,143.33,25.03917252]
[1764846115080,2.61813211,143.38,143.34,0.62]
[1764846115301,3.26813211,143.38,143.34,0.62]
[1764846115683,0.65,143.37,143.34,0.62]
[1764846116906,0.65,143.37,143.35,6.97593303]
[1764846118404,0.65,143.38,143.35,6.97593303]
[1764846119104,2.61813211,143.39,143.35,7.59593303]
[1764846119311,3.26813211,143.39,143.35,10.21406514]
[1764846119609,3.26813211,143.39,143.35,11.22406514]
[1764846119985,3.26813211,143.39,143.35,10.60406514]
[1764846120183,0.65,143.39,143.36,0.62]
[1764846120383,0.65,143.39,143.36,7.59496943]
[1764846120979,3.26813211,143.39,143.36,6.97496943]
[1764846121695,14.65315165,143.41,143.36,6.97496943]
[1764846121894,3.26813211,143.4,143.37,0.62]
[1764846122193,3.26813211,143.4,143.36,7.59496943]
[1764846122394,7.68,143.41,143.37,0.62]
[1764846122618,3.26813211,143.41,143.37,0.62]
[1764846123898,3.26813211,143.41,143.38,6.97447342]
[1764846124501,10.24037582,143.43,143.38,9.59260553]
[1764846124795,10.24037582,143.43,143.39,0.62]
[1764846126231,3.26813211,143.44,143.4,6.97350069]
[1764846126411,2.61813211,143.43,143.4,6.97350069]
[1764846126725,3.26813211,143.43,143.4,6.97350069]
[1764846127018,2.61813211,143.43,143.4,6.97350069]
[1764846127195,0.65,143.42,143.4,6.97350069]
[1764846127396,3.26813211,143.42,143.4,6.97350069]
[1764846128027,3.26813211,143.41,143.37,17.43676728]
[1764846128190,3.26813211,143.41,143.38,6.97417577]
[1764846128392,3.26813211,143.41,143.38,7.59417577]
[1764846131126,9.59076036,143.42,143.38,7.59417577]
[1764846131331,10.24076036,143.42,143.38,7.59417577]
[1764846132713,3.26813211,143.42,143.38,6.97417577]
[1764846132937,3.26813211,143.42,143.38,10.21230788]
[1764846133536,0.65,143.42,143.38,10.21230788]
[1764846133726,0.65,143.42,143.38,9.59230788]
[1764846133904,0.65,143.42,143.39,0.62]
[1764846134095,0.65,143.42,143.38,10.21230788]
[1764846134708,2.61813211,143.43,143.39,0.62]
[1764846134898,0.66,143.42,143.39,0.62]
[1764846135227,3.27813211,143.43,143.39,3.23813211]
[1764846135398,2.61813211,143.43,143.39,3.23813211]
[1764846135601,0.66,143.42,143.39,3.23813211]
[1764846135901,0.66,143.42,143.4,6.97350069]
[1764846137204,3.27813211,143.42,143.4,6.97350069]
[1764846137404,3.27813211,143.42,143.39,6.97378675]
[1764846138315,0.66,143.41,143.39,6.97378675]
[1764846138709,3.27813211,143.42,143.39,6.97378675]
[1764846139623,2.61813211,143.4,143.36,104.85712435]
[1764846139828,2.61813211,143.37,143.35,1.01]
[1764846140037,2.61813211,143.36,143.35,1.01]
[1764846140434,3.27813211,143.36,143.35,1.01]
[1764846140615,3.27813211,143.36,143.29,10.89813211]
[1764846140813,2.61813211,143.34,143.31,6.97788012]
[1764846141204,3.27813211,143.34,143.31,7.59788012]
[1764846141408,2.61813211,143.34,143.31,25.04258042]
[1764846141732,2.61813211,143.35,143.31,27.66071253]
[1764846142118,3.27813211,143.35,143.31,27.66071253]
[1764846142325,0.66,143.34,143.31,25.04258042]
[1764846144132,3.27813211,143.34,143.31,25.04258042]
[1764846144340,2.61813211,143.32,143.29,6.97876155]
[1764846144518,2.61813211,143.31,143.29,6.97876155]
[1764846144710,2.61813211,143.31,143.3,6.97836706]
[1764846145409,2.61813211,143.31,143.28,24.42769402]
[1764846145606,2.61813211,143.31,143.28,25.04769402]
[1764846146423,3.27813211,143.31,143.28,24.42769402]
[1764846146932,2.61813211,143.31,143.28,25.04769402]
[1764846147124,3.27813211,143.31,143.28,25.04769402]
[1764846147433,2.61813211,143.31,143.28,25.04769402]
[1764846148336,0.66,143.32,143.28,25.04769402]
[1764846148536,3.27813211,143.32,143.28,27.66582613]
[1764846148737,3.27813211,143.32,143.28,25.04769402]
[1764846149114,0.66,143.32,143.28,27.04582613]
[1764846149433,0.66,143.32,143.29,0.62]
[1764846150137,3.27813211,143.33,143.3,6.97836706]
[1764846150835,2.61813211,143.33,143.3,6.97836706]
[1764846151025,0.66,143.32,143.3,6.97836706]
[1764846151231,2.61813211,143.31,143.27,78.608864]
[1764846151540,2.61813211,143.31,143.27,79.228864]
[1764846151737,3.27813211,143.3,143.27,78.608864]
[1764846151914,3.27813211,143.3,143.27,85.58842243]
[1764846152311,9.59661101,143.3,143.27,62.3]
[1764846152517,9.59661101,143.3,143.26,6.98011248]
[1764846152518,2.61813211,143.28,143.24,6.98109691]
[1764846152719,2.61813211,143.27,143.24,23.28996091]
[1764846152932,2.61813211,143.26,143.23,6.98172581]
[1764846153222,0.66,143.25,143.23,6.98172581]
[1764846153740,2.61813211,143.26,143.23,6.98172581]
[1764846153938,3.27813211,143.26,143.23,6.98172581]
[1764846154244,0.66,143.25,143.23,6.98172581]
[1764846158153,3.27813211,143.25,143.23,6.98172581]
[1764846158855,0.66,143.25,143.23,6.98172581]
[1764846162156,2.61813211,143.27,143.23,6.98172581]
[1764846162335,0.71,143.26,143.23,6.98172581]
[1764846162860,0.71,143.26,143.23,7.60172581]
[1764846163044,2.61813211,143.27,143.24,0.62]
[1764846163235,3.27813211,143.27,143.24,0.62]
[1764846163436,3.27813211,143.27,143.23,24.43616971]
[1764846163655,3.27813211,143.27,143.23,25.05616971]
[1764846164462,33.75381375,143.31,143.24,0.62]
[1764846164463,4.75458039,143.28,143.24,0.62]
[1764846164949,0.66,143.27,143.24,0.62]
[1764846165635,0.66,143.27,143.25,6.98080279]
[1764846167162,4.75458039,143.27,143.25,6.98080279]
[1764846167461,4.09458039,143.28,143.25,7.60080279]
[1764846167662,4.75458039,143.28,143.25,7.60080279]
[1764846167830,4.75458039,143.28,143.25,6.98080279]
[1764846168237,4.09458039,143.28,143.25,6.98080279]
[1764846168448,0.66,143.27,143.25,6.98080279]
[1764846169965,0.66,143.27,143.24,6.98129014]
[1764846170561,4.09458039,143.26,143.24,6.98129014]
[1764846170871,4.09458039,143.25,143.23,6.98175621]
[1764846171466,4.75458039,143.25,143.23,6.98175621]
[1764846172242,4.75458039,143.25,143.22,7.18218362]
[1764846172766,0.66,143.24,143.22,7.18218362]
[1764846173766,4.75458039,143.24,143.22,7.18218362]
[1764846175777,0.66,143.23,143.22,7.18218362]
[1764846177672,4.75458039,143.25,143.22,7.18218362]
[1764846178057,6.98003495,143.27,143.22,7.80218362]
[1764846178263,0.66,143.27,143.23,0.62]
[1764846178568,0.66,143.26,143.23,0.62]
[1764846179175,0.66,143.26,143.22,29.35242662]
[1764846180360,4.09458039,143.24,143.22,7.18218362]
[1764846180967,0.66,143.23,143.22,7.18218362]
[1764846181360,4.75458039,143.25,143.22,7.18218362]
[1764846181745,0.66,143.24,143.22,7.18218362]
[1764846182772,4.75458039,143.24,143.22,7.18218362]
[1764846185958,11.07511308,143.26,143.22,7.18218362]
[1764846186269,0.66,143.24,143.22,7.18218362]
[1764846186481,6.97998858,143.27,143.22,7.18218362]
[1764846186680,11.07456897,143.27,143.23,0.62]
[1764846186853,0.66,143.26,143.22,11.27676401]
[1764846187056,0.66,143.26,143.22,11.89676401]
[1764846187448,4.75458039,143.26,143.22,25.25784623]
[1764846189570,0.66,143.26,143.22,29.35242662]
[1764846189755,4.09458039,143.27,143.23,0.62]
[1764846189962,4.75458039,143.27,143.23,0.62]
[1764846190150,4.09458039,143.27,143.23,0.62]
[1764846190476,0.66,143.26,143.23,0.62]
[1764846191175,0.66,143.26,143.23,4.71458039]
[1764846191476,0.66,143.26,143.23,0.62]
[1764846192074,0.66,143.26,143.24,6.98129014]
[1764846194462,0.66,143.26,143.23,24.43576034]
[1764846195061,0.66,143.26,143.23,25.05576034]
[1764846195370,0.66,143.26,143.23,24.43576034]
[1764846195749,0.66,143.26,143.23,25.05576034]
[1764846197566,4.09458039,143.27,143.23,24.43576034]
[1764846197870,4.78458039,143.27,143.24,0.62]
[1764846198074,4.09458039,143.27,143.23,25.05576034]
[1764846198277,0.69,143.26,143.23,25.05576034]
[1764846199053,17.44654461,143.3,143.24,4.71458039]
[1764846199054,0.69,143.29,143.24,4.71458039]
[1764846199361,0.69,143.29,143.25,4.09458039]
[1764846199569,0.69,143.29,143.25,4.71458039]
[1764846200880,0.69,143.29,143.26,6.98031551]
[1764846201982,11.073199,143.3,143.26,11.6948959]
[1764846201983,4.09458039,143.3,143.26,11.6948959]
[1764846202164,0.69,143.29,143.26,11.6948959]
[1764846203770,0.69,143.29,143.26,6.98031551]
[1764846204472,0.69,143.29,143.26,7.60031551]
[1764846204768,0.69,143.29,143.26,6.98031551]
[1764846205175,4.09458039,143.28,143.26,6.98031551]
[1764846205688,4.78458039,143.28,143.26,6.98031551]
[1764846205987,4.78458039,143.27,143.24,6.98088924]
[1764846206198,4.78458039,143.27,143.23,6.98151938]
[1764846206199,4.09458039,143.25,143.23,6.98151938]
[1764846206573,0.69,143.24,143.23,6.98151938]
[1764846207362,0.69,143.24,143.23,7.99151938]
[1764846208386,0.69,143.24,143.23,6.98151938]
[1764846208569,4.78458039,143.24,143.22,7.18220458]
[1764846209086,0.69,143.23,143.22,7.18220458]
[1764846209290,0.69,143.23,143.22,8.19220458]
[1764846209861,0.69,143.23,143.22,7.18220458]
[1764846210387,0.69,143.23,143.22,0.2]
[1764846210584,4.78458039,143.23,143.22,0.2]
[1764846216497,11.76635795,143.23,143.22,0.2]
[1764846220190,4.09458039,143.23,143.22,0.2]
[1764846220392,0.69,143.23,143.22,0.2]
[1764846220767,4.78458039,143.24,143.22,0.2]
[1764846220973,4.09458039,143.24,143.22,0.2]
[1764846221274,0.67,143.23,143.22,0.2]
[1764846221880,0.67,143.24,143.22,7.18226504]
[1764846222793,4.76458039,143.24,143.22,7.18226504]
[1764846223192,0.71,143.23,143.22,7.18226504]
[1764846223587,4.09458039,143.23,143.22,0.2]
[1764846224388,2.62215418,143.23,143.22,0.2]
[1764846226501,9.60393174,143.23,143.22,0.2]
[1764846228782,10.31393174,143.23,143.22,0.2]
[1764846230803,2.62215418,143.23,143.22,0.2]
[1764846231001,0.71,143.23,143.22,0.2]
[1764846232105,3.33215418,143.23,143.22,0.2]
[1764846234608,0.71,143.23,143.22,0.2]
[1764846234793,3.33215418,143.23,143.22,0.2]
[1764846238222,2.62215418,143.23,143.22,0.2]
[1764846238822,0.71,143.24,143.22,0.2]
[1764846238995,2.62215418,143.23,143.22,0.2]
[1764846240009,10.31315449,143.25,143.22,7.18226504]
[1764846240211,0.71,143.24,143.22,7.18226504]
[1764846240618,3.33215418,143.25,143.22,7.18226504]
[1764846241102,0.71,143.24,143.22,7.18226504]
[1764846241517,3.33215418,143.24,143.22,7.18226504]
[1764846243388,0.71,143.24,143.22,7.18226504]
[1764846243593,3.33215418,143.25,143.22,7.18226504]
[1764846244202,0.71,143.24,143.22,7.18226504]
[1764846246021,3.33215418,143.24,143.22,0.2]
[1764846246190,2.62215418,143.23,143.22,0.2]
[1764846246394,3.33215418,143.23,143.22,0.2]
[1764846250221,0.71,143.23,143.22,0.2]
[1764846250796,0.71,143.24,143.22,7.18225087]
[1764846251618,3.33215418,143.24,143.22,0.2]
[1764846253708,10.31354663,143.24,143.22,0.2]
[1764846254007,3.34215418,143.23,143.22,0.2]
[1764846254427,17.30645566,143.23,143.22,0.2]
[1764846257141,14.68430148,143.23,143.22,0.2]
[1764846259314,17.30645566,143.23,143.22,0.2]
[1764846261153,14.68430148,143.23,143.22,0.2]
[1764846263120,7.70177756,143.23,143.22,0.2]
[1764846264417,10.32393174,143.23,143.22,0.2]
[1764846264742,17.30794357,143.23,143.22,0.2]
[1764846268043,33.61680757,143.23,143.22,0.2]
[1764846268944,30.99465339,143.23,143.22,0.2]
[1764846269242,14.68578939,143.23,143.22,0.2]
[1764846272544,17.30794357,143.23,143.22,0.2]
[1764846272958,14.68578939,143.23,143.22,0.2]
[1764846275854,13.96578939,143.23,143.22,0.2]
[1764846276346,7.70177756,143.23,143.22,0.2]
[1764846279544,7.70109391,143.25,143.22,0.2]
[1764846279860,7.70109391,143.25,143.22,10.42440495]
[1764846280155,0.72,143.25,143.22,10.42440495]
[1764846280658,0.72,143.25,143.22,7.80225077]
[1764846280951,7.70088763,143.25,143.22,7.18225077]
[1764846282635,17.20588968,143.26,143.23,0.62]
[1764846282842,6.98051967,143.26,143.23,3.24215418]
[1764846283748,7.64004113,143.27,143.23,3.24215418]
[1764846285655,7.64004113,143.27,143.23,10.22390113]
[1764846286365,7.64004113,143.27,143.23,11.69643016]
[1764846288142,0.66,143.26,143.23,11.69643016]
[1764846291751,6.98004113,143.27,143.24,4.09468321]
[1764846291953,6.97937762,143.28,143.25,4.09468321]
[1764846292159,18.315214,143.3,143.26,4.09468321]
[1764846292361,0.66,143.3,143.27,4.09468321]
[1764846293059,7.63842069,143.3,143.26,11.69492057]
[1764846293977,6.97807672,143.31,143.28,4.09468321]
[1764846294278,6.97807672,143.31,143.29,4.09468321]
[1764846294667,8.32,143.32,143.29,4.09468321]
[1764846294668,14.63757714,143.32,143.29,4.09468321]
[1764846294872,0.66,143.31,143.29,4.09468321]
[1764846295381,14.63757714,143.32,143.29,11.69349138]
[1764846295675,7.63757714,143.32,143.29,11.69349138]
[1764846296188,7.63757714,143.32,143.29,4.09468321]
[1764846296377,16.308864,143.29,143.23,0.62]
[1764846296684,4.09468321,143.24,143.22,0.2]
[1764846296874,4.09468321,143.23,143.22,0.2]
[1764846297374,4.75468321,143.23,143.22,0.2]
[1764846297554,0.66,143.23,143.22,0.2]
[1764846300475,11.73646077,143.23,143.22,0.2]
[1764846300985,0.66,143.23,143.22,0.2]
[1764846301288,11.73646077,143.23,143.22,0.2]
[1764846303672,7.64177756,143.23,143.22,0.2]
[1764846305283,0.66,143.23,143.22,0.2]
[1764846305478,6.98145204,143.24,143.22,0.2]
[1764846305673,7.64145204,143.24,143.22,0.2]
[1764846307963,0.66,143.23,143.22,0.2]
[1764846308983,7.64145204,143.24,143.22,0.2]
[1764846311767,6.98145204,143.24,143.22,0.2]
[1764846311970,0.66,143.23,143.22,0.2]
[1764846313677,7.64177756,143.23,143.22,0.2]
[1764846314467,7.68177756,143.23,143.22,0.2]
[1764846314669,11.77646077,143.23,143.22,0.2]
[1764846316860,68.23447568,143.23,143.19,0.2]
[1764846317066,16.308864,143.19,143.16,0.2]
[1764846317295,4.09468321,143.18,143.16,0.2]
[1764846317467,4.79468321,143.2,143.16,0.9]
[1764846317673,11.77468321,143.21,143.16,4.99468321]
[1764846317871,8.38,143.21,143.17,4.79468321]
[1764846318293,8.38,143.21,143.17,0.7]
[1764846318486,0.7,143.21,143.17,4.79468321]
[1764846318692,11.07841112,143.19,143.16,0.2]
[1764846318992,4.09468321,143.17,143.16,0.2]
[1764846319162,20.40354721,143.17,143.16,0.2]
[1764846319367,21.10354721,143.17,143.16,0.2]
[1764846321008,28.0882507,143.17,143.16,0.2]
[1764846321236,80.47352693,143.17,143.11,0.2]
[1764846321382,4.09468321,143.12,143.11,0.2]
[1764846321802,4.79468321,143.12,143.11,0.2]
[1764846323092,11.78182686,143.12,143.11,0.2]
[1764846323808,7.68714365,143.12,143.11,0.2]
[1764846324111,28.54744354,143.14,143.11,0.2]
[1764846324312,0.7,143.12,143.11,0.2]
[1764846324604,4.79468321,143.12,143.11,0.2]
[1764846324782,4.09468321,143.13,143.11,0.2]
[1764846324983,4.79468321,143.13,143.11,0.2]
[1764846325180,23.99419186,143.16,143.12,0.7]
[1764846325503,4.79468321,143.15,143.11,0.2]
[1764846325716,4.09468321,143.13,143.11,0.2]
[1764846326077,0.7,143.12,143.11,0.2]
[1764846326603,4.09468321,143.14,143.11,0.2]
[1764846326803,0.7,143.14,143.11,0.9]
[1764846326998,0.7,143.13,143.11,0.2]
[1764846329003,7.68581048,143.15,143.11,11.9822954]
[1764846329405,6.98581048,143.15,143.11,11.9822954]
[1764846329721,6.98581048,143.15,143.12,4.79468321]
[1764846329926,7.68581048,143.15,143.12,4.79468321]
[1764846330804,17.46089109,143.18,143.13,4.09468321]
[1764846331121,0.7,143.17,143.13,4.09468321]
[1764846331293,11.77953886,143.17,143.12,7.68696234]
[1764846331490,11.77953886,143.17,143.12,11.78164555]
[1764846331714,0.7,143.16,143.12,11.78164555]
[1764846332721,11.77953886,143.17,143.13,4.79468321]
[1764846333016,0.7,143.16,143.13,11.08120732]
[1764846333725,7.68523329,143.16,143.12,11.78163063]
[1764846333907,11.7799165,143.16,143.12,11.78163063]
[1764846334496,4.79468321,143.15,143.11,4.29468321]
[1764846334913,4.79468321,143.14,143.11,0.2]
[1764846335133,6.98665548,143.13,143.11,0.2]
[1764846335302,7.68665548,143.13,143.11,0.2]
[1764846335925,0.7,143.12,143.11,0.2]
[1764846336423,4.79468321,143.12,143.11,0.2]
[1764846337012,4.09468321,143.13,143.11,0.2]
[1764846337213,0.7,143.13,143.11,0.2]
[1764846338021,28.08932107,143.15,143.11,7.88760671]
[1764846338225,0.7,143.14,143.11,7.88760671]
[1764846339003,7.68577386,143.15,143.11,7.88760671]
[1764846339224,7.68577386,143.15,143.11,11.98228992]
[1764846339831,17.008864,143.16,143.12,4.79468321]
[1764846340925,17.008864,143.16,143.12,4.77468321]
[1764846341132,23.9944437,143.16,143.12,11.76170987]
[1764846341429,28.08912691,143.16,143.12,7.66702666]
[1764846341633,28.08912691,143.16,143.12,0.68]
[1764846341833,28.08912691,143.16,143.12,7.66692075]
[1764846343714,6.98493044,143.17,143.14,4.09468321]
[1764846344329,4.76468321,143.16,143.12,11.80160396]
[1764846344833,0.67,143.16,143.13,0.72]
[1764846345212,7.65554742,143.16,143.12,6.98692075]
[1764846346337,7.65554742,143.16,143.11,11.28215289]
[1764846346338,0.67,143.15,143.11,11.28215289]
[1764846346513,0.67,143.15,143.11,10.53261934]
[1764846346833,3.29514966,143.15,143.11,0.2]
[1764846347030,0.67,143.15,143.11,0.2]
[1764846347330,0.67,143.14,143.11,0.2]
[1764846347914,8.37,143.14,143.11,0.2]
[1764846348114,10.99514966,143.14,143.11,0.2]
[1764846348312,8.37,143.14,143.11,0.2]
[1764846349126,6.98665548,143.13,143.11,0.2]
[1764846349334,7.65665548,143.13,143.11,0.2]
[1764846350917,0.67,143.12,143.11,0.2]
[1764846351122,7.65714365,143.12,143.11,0.2]
[1764846355540,6.98675733,143.13,143.11,0.92]
[1764846355710,6.98675733,143.13,143.11,0.2]
[1764846356514,6.98675733,143.13,143.11,3.54514966]
[1764846357447,6.9863939,143.14,143.12,3.34514966]
[1764846358321,6.98581149,143.15,143.13,3.34514966]
[1764846359136,6.98581149,143.15,143.13,2.62514966]
[1764846359331,6.98581149,143.15,143.12,2.62514966]
[1764846359843,0.67,143.14,143.11,10.53271711]
[1764846360351,0.67,143.14,143.11,0.2]
[1764846360546,3.29514966,143.14,143.11,0.2]
[1764846360854,6.98714365,143.12,143.11,0.2]
[1764846361299,7.65714365,143.12,143.11,0.2]
[1764846362926,6.98714365,143.12,143.11,0.2]
[1764846363134,7.65714365,143.12,143.11,0.2]
[1764846364051,0.67,143.12,143.11,0.2]
[1764846364355,6.98670434,143.13,143.11,0.2]
[1764846364658,7.65670434,143.13,143.11,0.2]
[1764846365470,6.98628058,143.14,143.11,0.2]
[1764846365679,0.67,143.15,143.12,2.62514966]
[1764846365866,6.9857596,143.15,143.12,2.62514966]
[1764846366070,7.6557596,143.15,143.12,3.34514966]
[1764846367574,7.6557596,143.15,143.11,7.18763062]
[1764846367575,7.6557596,143.15,143.11,10.53278028]
[1764846368175,7.6557596,143.15,143.11,9.81278028]
[1764846368480,6.98530181,143.16,143.13,2.62514966]
[1764846368875,6.98530181,143.16,143.13,3.34514966]
[1764846369074,7.65530181,143.16,143.13,3.34514966]
[1764846369384,7.65530181,143.16,143.13,2.62514966]
[1764846369678,0.67,143.15,143.12,0.72]
[1764846370355,0.67,143.15,143.11,2.82514966]
[1764846370556,2.62514966,143.14,143.11,0.2]
[1764846370984,0.67,143.13,143.11,0.2]
[1764846371677,6.98714365,143.12,143.11,0.2]
[1764846372182,7.65714365,143.12,143.11,0.2]
[1764846373284,6.98714365,143.12,143.11,0.2]
[1764846373478,6.9867925,143.13,143.11,0.2]
[1764846373678,7.6967925,143.13,143.11,0.2]
[1764846374589,6.98628625,143.14,143.11,3.48514966]
[1764846374758,7.69628625,143.14,143.11,3.48514966]
[1764846374967,6.98590717,143.15,143.11,10.47257391]
[1764846375186,0.71,143.14,143.11,10.47257391]
[1764846375690,7.69628552,143.14,143.11,10.47257391]
[1764846377590,6.98578797,143.15,143.12,3.28514966]
[1764846377889,7.69578797,143.15,143.12,2.62514966]
[1764846378567,7.69578797,143.15,143.12,10.27223504]
[1764846378795,19.64401366,143.17,143.13,0.66]
[1764846379092,0.71,143.16,143.13,0.66]
[1764846379892,7.69519221,143.16,143.13,7.64664317]
[1764846380695,7.69519221,143.16,143.13,10.27179283]
[1764846382794,7.69519221,143.16,143.13,7.64664317]
[1764846382999,7.69519221,143.16,143.13,9.61179283]
[1764846383496,7.69519221,143.16,143.13,10.27179283]
[1764846383676,6.98470349,143.17,143.13,9.61179283]
[1764846383874,7.69470349,143.17,143.14,3.28514966]
[1764846384289,17.46126832,143.18,143.13,6.98664317]
[1764846384290,6.98441248,143.18,143.15,3.28514966]
[1764846384497,7.69441248,143.18,143.15,3.28514966]
[1764846384677,23.29279245,143.19,143.16,2.62514966]
[1764846384878,3.33514966,143.18,143.13,6.98664317]
[1764846385088,2.62514966,143.17,143.12,10.27209041]
[1764846385382,3.33514966,143.17,143.12,10.27209041]
[1764846385606,0.71,143.16,143.12,7.64694075]
[1764846385777,7.69553681,143.16,143.12,10.27209041]
[1764846385985,7.69553681,143.16,143.13,3.28514966]
[1764846386372,7.69553681,143.16,143.13,2.62514966]
[1764846386573,7.69553681,143.16,143.12,10.27209041]
[1764846387201,0.71,143.16,143.13,3.28514966]
[1764846387395,6.98492888,143.17,143.13,3.28514966]
[1764846387701,7.69492888,143.17,143.13,3.28514966]
[1764846387995,7.69442547,143.18,143.14,3.28514966]
[1764846388198,25.91776773,143.19,143.14,3.28514966]
[1764846388382,0.71,143.18,143.14,3.28514966]
[1764846388978,3.33514966,143.18,143.14,2.62514966]
[1764846389288,10.31978574,143.18,143.14,2.62514966]
[1764846389472,0.71,143.17,143.14,9.61119823]
[1764846390901,0.71,143.17,143.14,10.27119823]
[1764846391321,6.98463608,143.18,143.14,9.61119823]
[1764846391601,23.29281281,143.19,143.15,10.27069733]
[1764846391901,23.29281281,143.19,143.16,2.62514966]
[1764846392084,24.00281281,143.19,143.16,3.28514966]
[1764846392289,7.69394881,143.19,143.16,3.28514966]
[1764846392494,7.69394881,143.19,143.16,2.62514966]
[1764846393003,0.71,143.19,143.17,2.62514966]
[1764846393303,7.6932882,143.2,143.17,2.62514966]